bitfinex-derivatives/quotes_BNBF0:USTF0_20250511
["timestamp","ask_amount","ask_price","bid_price","bid_amount"]
[1746948222636,0.2417301,659.29,655.78,0.27977946]
[1746948222930,0.2417301,659.28,655.78,0.27977946]
[1746948223535,0.2417301,659.27,655.78,0.27977946]
[1746948223931,0.2417301,659.26,655.78,0.27977946]
[1746948224236,0.2417301,659.25,655.78,0.27977946]
[1746948224436,0.2417301,659.24,655.78,0.27977946]
[1746948224835,0.2417301,659.23,655.78,0.27977946]
[1746948225036,0.2417301,659.22,655.78,0.27977946]
[1746948225436,0.2417301,659.21,655.78,0.27977946]
[1746948225737,0.2417301,659.2,655.78,0.27977946]
[1746948226141,0.2417301,659.19,655.78,0.27977946]
[1746948226438,0.2417301,659.18,655.78,0.27977946]
[1746948226838,0.2417301,659.17,655.79,0.27977946]
[1746948227038,0.2417301,659.17,655.93,0.30491058]
[1746948227233,0.2417301,659.16,655.94,0.27977946]
[1746948227436,0.30349013,659.0,656.05,0.30485481]
[1746948228136,0.2417301,658.99,656.06,0.27977946]
[1746948228336,0.2417301,658.99,656.08,0.30484087]
[1746948228537,0.30355923,658.85,656.08,0.30484087]
[1746948228840,0.50634775,658.84,656.09,0.27977946]
[1746948229138,0.50634775,658.84,656.11,0.30482693]
[1746948229435,0.30362374,658.71,656.11,0.30482693]
[1746948229834,0.24170287,658.7,656.12,0.27963154]
[1746948230034,0.24170287,658.7,656.14,0.30481299]
[1746948230236,0.30368368,658.58,656.14,0.30481299]
[1746948230640,0.24170287,658.57,656.15,0.27963154]
[1746948230834,0.30374364,658.45,656.17,0.30479906]
[1746948231238,0.24170287,658.44,656.18,0.27963154]
[1746948231435,0.30375748,658.42,656.2,0.30478512]
[1746948231938,0.24170287,658.41,656.21,0.27963154]
[1746948232138,0.30377132,658.39,656.23,0.30477119]
[1746948232737,0.24170287,658.38,656.24,0.27963154]
[1746948232938,0.30378516,658.36,656.26,0.30475726]
[1746948233640,0.24179045,658.35,656.27,0.27960066]
[1746948233839,0.303799,658.33,656.29,0.30474332]
[1746948234235,0.24179045,658.32,656.3,0.27960066]
[1746948234434,0.24179045,658.32,656.3,0.85860066]
[1746948234839,0.24179045,658.32,656.31,0.27960066]
[1746948237034,0.26465488,658.31,656.31,0.27960066]
[1746948237338,0.24179045,658.3,656.31,0.27960066]
[1746948239939,0.26465488,658.29,656.31,0.27960066]
[1746948241142,0.24179045,658.28,656.31,0.27960066]
[1746948241340,0.26465488,658.29,656.3,0.579]
[1746948241645,0.24186815,658.28,656.31,0.27959095]
[1746948242842,0.24186815,658.32,656.31,0.27959095]
[1746948243144,0.26465488,658.27,656.31,0.27959095]
[1746948243445,0.24186815,658.26,656.31,0.27959095]
[1746948245945,0.26465488,658.25,656.31,0.27959095]
[1746948246351,0.24186815,658.24,656.31,0.27959095]
[1746948246544,0.303799,658.33,656.31,0.27959095]
[1746948248048,0.303799,658.33,656.3,0.579]
[1746948248350,0.303799,658.33,656.31,0.27945164]
[1746948249454,0.2419194,658.32,656.31,0.27945164]
[1746948249947,0.2419194,658.32,656.32,0.27945164]
[1746948250352,0.2419194,658.32,656.33,0.27945164]
[1746948250652,0.2419194,658.32,656.34,0.27945164]
[1746948251144,0.2419194,658.32,656.35,0.27945164]
[1746948251551,0.303799,658.33,656.3,0.27945164]
[1746948252151,0.24184462,658.32,656.3,0.27945164]
[1746948252852,0.24184462,658.32,656.31,0.544]
[1746948253052,0.24184462,658.32,656.32,0.27945164]
[1746948253754,0.303799,658.33,656.31,0.544]
[1746948254053,0.24183631,658.32,656.32,0.27952739]
[1746948258956,0.24183631,658.32,656.33,0.27952739]
[1746948259255,0.24183631,658.32,656.34,0.27952739]
[1746948260256,0.24183631,658.32,656.35,0.27952739]
[1746948260555,0.24183631,658.32,656.36,0.27952739]
[1746948260955,0.24183631,658.32,656.32,0.27952739]
[1746948261151,0.24183631,658.32,656.32,0.26456736]
[1746948261356,0.303799,658.33,656.32,0.26456736]
[1746948261558,0.24201513,658.31,656.33,0.279455]
[1746948262161,0.24201513,658.32,656.34,0.279455]
[1746948262553,0.24201513,658.32,656.35,0.279455]
[1746948262857,0.24201513,658.32,656.36,0.279455]
[1746948263257,0.24201513,658.32,656.37,0.279455]
[1746948263757,0.24201513,658.32,656.38,0.279455]
[1746948264058,0.24201513,658.32,656.39,0.279455]
[1746948264458,0.24201513,658.32,656.4,0.279455]
[1746948265053,0.24201513,658.32,656.41,0.279455]
[1746948265458,0.24201513,658.32,656.42,0.279455]
[1746948265758,0.24201513,658.32,656.43,0.279455]
[1746948266158,0.24201513,658.32,656.44,0.279455]
[1746948266460,0.24201513,658.32,656.45,0.279455]
[1746948266859,0.24201513,658.32,656.46,0.279455]
[1746948267156,0.303799,658.33,656.37,0.26456233]
[1746948267356,0.303799,658.33,656.38,0.279455]
[1746948269861,0.24206526,658.32,656.38,0.279455]
[1746948271858,0.24206526,658.32,656.39,0.279455]
[1746948272162,0.24206526,658.32,656.4,0.279455]
[1746948272562,0.24206526,658.32,656.41,0.279455]
[1746948272961,0.24206526,658.32,656.42,0.279455]
[1746948273361,0.24206526,658.32,656.43,0.279455]
[1746948273762,0.24206526,658.32,656.44,0.279455]
[1746948274157,0.24206526,658.32,656.45,0.279455]
[1746948274460,0.24206526,658.32,656.46,0.279455]
[1746948274863,0.24206526,658.32,656.47,0.279455]
[1746948275863,0.24206526,658.32,656.48,0.279455]
[1746948276265,0.24206526,658.32,656.42,0.26454323]
[1746948276466,0.24206526,658.32,656.43,0.279455]
[1746948276659,0.24206526,658.32,656.43,0.705455]
[1746948276861,0.24206526,658.32,656.44,0.279455]
[1746948277065,0.24206526,658.32,656.45,0.279455]
[1746948277367,0.24206526,658.32,656.46,0.279455]
[1746948277866,0.24206526,658.32,656.47,0.279455]
[1746948278060,0.24206526,658.32,656.48,0.279455]
[1746948278367,0.24206526,658.32,656.49,0.279455]
[1746948278666,0.24206526,658.32,656.5,0.279455]
[1746948279168,0.24206526,658.32,656.51,0.279455]
[1746948279467,0.24206526,658.32,656.52,0.279455]
[1746948279865,0.24206526,658.32,656.53,0.279455]
[1746948280169,0.24206526,658.32,656.44,0.279455]
[1746948280463,0.24206526,658.32,656.45,0.279455]
[1746948280768,0.24206526,658.32,656.46,0.279455]
[1746948281069,0.24206526,658.32,656.47,0.279455]
[1746948281368,0.24206526,658.32,656.48,0.279455]
[1746948281868,0.24206526,658.32,656.49,0.279455]
[1746948282462,0.24206526,658.32,656.5,0.279455]
[1746948282769,0.24206526,658.32,656.51,0.279455]
[1746948283067,0.24206526,658.32,656.44,0.26454524]
[1746948283068,0.24206526,658.32,656.52,0.279455]
[1746948283362,0.24206526,658.32,656.53,0.279455]
[1746948283867,0.24206526,658.32,656.44,0.26454524]
[1746948283868,0.24206526,658.32,656.45,0.279455]
[1746948284167,0.24206526,658.32,656.54,0.279455]
[1746948284368,0.24206526,658.32,656.46,0.279455]
[1746948284864,0.24206526,658.32,656.47,0.279455]
[1746948285063,0.24206526,658.32,656.48,0.279455]
[1746948285468,0.24206526,658.32,656.49,0.279455]
[1746948285867,0.24206526,658.32,656.5,0.279455]
[1746948286170,0.24206526,658.32,656.51,0.279455]
[1746948286568,0.24206526,658.32,656.52,0.279455]
[1746948286968,0.24206526,658.32,656.53,0.279455]
[1746948287469,0.24206526,658.32,656.54,0.279455]
[1746948287767,0.24206526,658.32,656.46,0.279455]
[1746948288869,0.24206526,658.32,656.47,0.279455]
[1746948289271,0.24206526,658.32,656.46,0.279455]
[1746948291873,0.24206526,658.32,656.45,0.26454121]
[1746948291874,0.303799,658.33,656.45,0.26454121]
[1746948292074,0.2421858,658.32,656.46,0.27941444]
[1746948293675,0.303799,658.33,656.46,0.27941444]
[1746948294675,0.303799,658.33,656.45,0.26454121]
[1746948294974,0.303799,658.33,656.46,0.2793965]
[1746948295175,0.303799,658.33,656.46,0.7393965]
[1746948295975,0.303799,658.33,656.47,0.2793965]
[1746948305185,0.303799,658.33,656.46,0.7245191]
[1746948305483,0.303799,658.33,656.47,0.27944151]
[1746948309282,1.92318063,659.55,656.47,0.27944151]
[1746948309486,0.24227216,659.54,656.47,0.27944151]
[1746948309886,0.24227216,659.53,656.47,0.27944151]
[1746948310283,0.24227216,659.52,656.47,0.27944151]
[1746948310483,1.92318063,659.44,656.47,0.27944151]
[1746948311089,0.24227216,659.43,656.47,0.27944151]
[1746948311289,0.50671085,659.43,656.47,0.27944151]
[1746948311491,0.24227216,659.42,656.47,0.27944151]
[1746948311786,0.24227216,659.41,656.47,0.27944151]
[1746948311991,0.24227216,659.4,656.47,0.27944151]
[1746948312390,0.24227216,659.39,656.47,0.27944151]
[1746948312586,1.92318063,659.08,656.47,0.27944151]
[1746948312990,0.24227216,659.07,656.47,0.27944151]
[1746948313290,0.24227216,659.06,656.47,0.27944151]
[1746948313991,0.24227216,659.05,656.47,0.27944151]
[1746948314192,0.50674703,659.05,656.47,0.27944151]
[1746948314393,0.24227216,659.04,656.47,0.27944151]
[1746948314589,0.24227216,659.03,656.47,0.27944151]
[1746948314988,0.24227216,659.02,656.48,0.27944151]
[1746948315294,0.24227216,659.01,656.47,0.27944151]
[1746948315694,0.24227216,659.0,656.48,0.27944151]
[1746948315992,0.24227216,658.99,656.47,0.27944151]
[1746948316197,0.50677015,658.99,656.47,0.27944151]
[1746948316495,0.24227216,658.98,656.47,0.27944151]
[1746948316696,1.92318063,658.86,656.47,0.27944151]
[1746948316993,0.24227216,658.85,656.47,0.27944151]
[1746948317398,0.24227216,658.84,656.47,0.27944151]
[1746948317897,1.92318063,658.86,656.47,0.27944151]
[1746948317898,0.24227216,658.83,656.47,0.27944151]
[1746948318093,0.24227216,658.82,656.47,0.27944151]
[1746948318401,0.24227216,658.81,656.47,0.27944151]
[1746948318899,0.24227216,658.8,656.47,0.27944151]
[1746948319301,0.24227216,658.82,656.47,0.27944151]
[1746948319799,0.24227216,658.81,656.47,0.27944151]
[1746948320006,0.24227216,658.8,656.47,0.27944151]
[1746948320401,0.24227216,658.79,656.47,0.27944151]
[1746948320695,0.24227216,658.78,656.47,0.27944151]
[1746948321000,0.3036007,658.76,656.57,0.30461336]
[1746948321499,0.24227216,658.75,656.58,0.27944151]
[1746948321800,0.24227216,658.74,656.58,0.27944151]
[1746948322100,0.24227216,658.75,656.58,0.27944151]
[1746948322896,0.24227216,658.74,656.58,0.27944151]
[1746948323397,0.24227216,658.73,656.58,0.27944151]
[1746948323703,0.24227216,658.75,656.58,0.27944151]
[1746948324799,0.24227216,658.75,656.57,0.30461336]
[1746948325604,0.24227216,658.75,656.58,0.445]
[1746948326103,0.24227216,658.75,656.59,0.2795441]
[1746948326905,0.26456133,658.74,656.58,0.445]
[1746948327303,0.24227216,658.73,656.58,0.445]
[1746948327503,0.24227216,658.73,656.59,0.27955787]
[1746948327806,0.24227216,658.72,656.59,0.27955787]
[1746948328105,0.24227216,658.71,656.59,0.27955787]
[1746948329306,0.24227216,658.7,656.59,0.27955787]
[1746948329603,0.24227216,658.69,656.59,0.27955787]
[1746948330006,0.24227216,658.68,656.59,0.27955787]
[1746948330207,0.24227216,658.67,656.59,0.27955787]
[1746948330508,0.24227216,658.66,656.59,0.27955787]
[1746948330908,0.24227216,658.75,656.59,0.27955787]
[1746948331103,0.26455127,658.65,656.59,0.27955787]
[1746948331301,0.24227216,658.64,656.59,0.27955787]
[1746948331709,0.24227216,658.75,656.59,0.27955787]
[1746948332209,0.24227216,658.75,656.61,0.30459481]
[1746948332504,0.3036514,658.65,656.61,0.30459481]
[1746948332807,0.24227216,658.64,656.62,0.27955787]
[1746948333408,0.3036514,658.65,656.61,0.30459481]
[1746948333709,0.24276268,658.64,656.62,0.27954763]
[1746948334311,0.3036514,658.65,656.62,0.27954763]
[1746948334610,0.3036514,658.65,656.61,0.30459481]
[1746948334912,0.24286144,658.64,656.63,0.27942191]
[1746948335206,0.24286144,658.64,656.62,0.27942191]
[1746948337306,0.24286144,658.64,656.72,0.30454379]
[1746948337506,0.24286144,658.64,656.73,0.27942191]
[1746948337916,0.24286144,658.64,656.75,0.30452988]
[1746948338314,0.24286144,658.64,656.76,0.27942191]
[1746948339414,0.3036514,658.65,656.75,0.30452988]
[1746948339815,0.24303115,658.64,656.76,0.27945291]
[1746948340216,0.24303115,658.64,656.78,0.30451597]
[1746948340416,0.24303115,658.64,656.79,0.27945291]
[1746948341015,0.3036514,658.65,656.78,0.30451597]
[1746948341416,0.24305362,658.64,656.79,0.27946903]
[1746948342015,0.26450402,658.63,656.79,0.27946903]
[1746948342217,0.26450402,658.63,656.81,0.30450206]
[1746948342712,0.30366985,658.61,656.82,0.27946903]
[1746948343217,0.24305362,658.6,656.83,0.30449279]
[1746948343414,0.30368368,658.58,656.83,0.30449279]
[1746948343910,0.24305362,658.57,656.83,0.30449279]
[1746948344115,0.30369751,658.55,656.83,0.30449279]
[1746948344516,0.24305362,658.54,656.83,0.30449279]
[1746948344711,0.30370674,658.53,656.84,0.27944697]
[1746948345018,0.24305362,658.52,656.86,0.30447888]
[1746948345214,0.30371596,658.51,656.86,0.30447888]
[1746948345414,0.30371596,658.51,656.87,0.27944697]
[1746948345617,0.24305362,658.5,656.87,0.27944697]
[1746948346213,0.24305362,658.5,656.89,0.30446497]
[1746948346718,0.30372518,658.49,656.9,0.27944697]
[1746948346913,0.24305362,658.48,656.9,0.27944697]
[1746948347414,0.24305362,658.48,656.92,0.30445107]
[1746948347819,0.24305362,658.48,656.93,0.27944697]
[1746948348220,0.24305362,658.48,656.95,0.30443717]
[1746948348520,0.24305362,658.48,656.96,0.27944697]
[1746948348723,0.24305362,658.48,656.97,0.3044279]
[1746948349422,0.24305362,658.48,656.98,0.27944697]
[1746948349622,0.24305362,658.48,656.99,0.30441863]
[1746948350622,0.24305362,658.48,657.0,0.27938889]
[1746948350823,0.24305362,658.48,657.02,0.30440473]
[1746948351219,0.24305362,658.48,657.03,0.384]
[1746948351418,0.24305362,658.48,657.04,0.30439547]
[1746948353830,0.24305362,658.48,657.05,0.27934351]
[1746948354730,0.30372518,658.49,657.04,0.30439547]
[1746948355130,0.24322388,658.48,657.05,0.27933285]
[1746948355425,0.30372518,658.49,657.05,0.27933285]
[1746948359633,1.92318063,659.76,657.05,0.27933285]
[1746948359834,0.30320027,659.63,657.05,0.27933285]
[1746948360333,0.24320457,659.62,657.05,0.27933285]
[1746948360732,0.24320457,659.61,657.05,0.27933285]
[1746948361034,0.24320457,659.6,657.05,0.27933285]
[1746948361530,0.24320457,659.59,657.05,0.27933285]
[1746948361928,0.24320457,659.58,657.05,0.27933285]
[1746948362131,0.24320457,659.57,657.05,0.27933285]
[1746948362435,0.24320457,659.56,657.05,0.27933285]
[1746948363034,0.24320457,659.55,657.05,0.27933285]
[1746948363332,0.24320457,659.54,657.05,0.27933285]
[1746948363535,0.24320457,659.62,657.05,0.27933285]
[1746948363934,0.24320457,659.61,657.05,0.27933285]
[1746948364136,0.50743545,659.61,657.05,0.27933285]
[1746948364435,0.24320457,659.6,657.06,0.27933285]
[1746948364737,0.24320457,659.59,657.07,0.27933285]
[1746948364928,0.24320457,659.58,657.08,0.27933285]
[1746948365435,0.24320457,659.6,657.05,0.27933285]
[1746948367837,0.24320457,659.6,657.17,0.30433525]
[1746948368247,0.30326004,659.5,657.18,0.27933285]
[1746948368435,0.30326004,659.5,657.28,0.30428432]
[1746948368632,0.24320457,659.49,657.28,0.30428432]
[1746948368938,0.30327384,659.47,657.29,0.71133285]
[1746948369138,0.30327384,659.47,657.31,0.30427043]
[1746948369337,0.24320457,659.46,657.32,0.27933285]
[1746948369633,0.30328763,659.44,657.34,0.30425654]
[1746948370036,0.24320457,659.43,657.35,0.27933285]
[1746948370336,0.24320457,659.43,657.37,0.30424266]
[1746948370837,0.30330143,659.41,657.37,0.30424266]
[1746948371136,0.24320457,659.4,657.37,0.30424266]
[1746948371639,0.30331523,659.38,657.37,0.30424266]
[1746948372237,0.24320457,659.37,657.37,0.30424266]
[1746948373938,0.24320457,659.37,657.38,0.27925836]
[1746948374139,0.24320457,659.36,657.38,0.27925836]
[1746948374439,0.24320457,659.35,657.38,0.27925836]
[1746948374934,0.50749766,659.34,657.38,0.27925836]
[1746948375139,0.24320457,659.33,657.38,0.27925836]
[1746948375436,0.24320457,659.32,657.37,0.30424266]
[1746948376236,0.24320457,659.31,657.37,0.30424266]
[1746948376637,0.24320457,659.3,657.37,0.30424266]
[1746948376834,0.24320457,659.29,657.38,0.27929857]
[1746948377040,0.24320457,659.28,657.37,0.30424266]
[1746948377440,0.24320457,659.27,657.37,0.30424266]
[1746948377736,0.24320457,659.26,657.38,0.27929856]
[1746948377940,0.24320457,659.25,657.38,0.27929856]
[1746948378340,0.24320457,659.24,657.38,0.27929856]
[1746948378739,0.24320457,659.23,657.37,0.30424266]
[1746948379342,0.24320457,659.22,657.37,0.30424266]
[1746948379841,0.24320457,659.25,657.38,0.2792602]
[1746948380142,0.2642961,659.26,657.37,0.30424266]
[1746948380437,0.24326183,659.25,657.38,0.27924773]
[1746948380938,0.26426299,659.24,657.38,0.27924773]
[1746948381540,0.24326183,659.23,657.38,0.27924773]
[1746948383046,0.24326183,659.23,657.37,0.30424266]
[1746948383047,0.26426299,659.24,657.37,0.30424266]
[1746948383347,0.24325405,659.23,657.38,0.2792464]
[1746948383941,0.24325405,659.37,657.38,0.2792464]
[1746948384143,0.26427302,659.22,657.38,0.2792464]
[1746948384345,0.24325405,659.37,657.37,0.30424266]
[1746948384541,0.24325405,659.36,657.37,0.30424266]
[1746948384946,0.24325405,659.35,657.37,0.30424266]
[1746948385143,0.2642951,659.35,657.37,0.30424266]
[1746948385547,0.24321199,659.34,657.37,0.30424266]
[1746948385848,0.24321199,659.33,657.37,0.30424266]
[1746948386147,0.24321199,659.32,657.37,0.30424266]
[1746948386449,0.24321199,659.31,657.37,0.30424266]
[1746948386850,0.24321199,659.34,657.37,0.30424266]
[1746948390052,0.26428607,659.33,657.37,0.30424266]
[1746948390753,0.24321199,659.32,657.37,0.30424266]
[1746948392952,0.26428406,659.31,657.37,0.30424266]
[1746948393557,0.24321199,659.3,657.37,0.30424266]
[1746948393848,0.26428406,659.31,657.37,0.30424266]
[1746948394653,0.24343839,659.3,657.38,0.27926107]
[1746948395252,0.24343839,659.3,657.39,0.293]
[1746948397249,0.24343839,659.3,657.4,0.2792568]
[1746948397555,0.24343839,659.3,657.39,0.293]
[1746948400055,0.24343839,659.29,657.39,0.293]
[1746948400358,0.24343839,659.3,657.39,0.293]
[1746948400559,0.26428406,659.31,657.39,0.293]
[1746948400859,0.2434679,659.3,657.39,0.293]
[1746948401158,0.2434679,659.29,657.39,0.293]
[1746948401458,0.2434679,659.3,657.39,0.293]
[1746948402359,0.26428406,659.31,657.39,0.293]
[1746948402559,0.24346901,659.3,657.39,0.293]
[1746948403460,0.24346901,659.29,657.39,0.293]
[1746948403660,0.24346901,659.28,657.39,0.293]
[1746948403860,0.24346901,659.27,657.39,0.293]
[1746948404261,0.24346901,659.26,657.39,0.293]
[1746948404559,0.24346901,659.25,657.39,0.293]
[1746948404761,0.24346901,659.24,657.39,0.293]
[1746948404967,0.24346901,659.23,657.39,0.293]
[1746948405268,0.24346901,659.22,657.39,0.293]
[1746948405460,0.24346901,659.21,657.39,0.293]
[1746948405665,0.24346901,659.2,657.39,0.293]
[1746948405865,0.24346901,659.19,657.39,0.293]
[1746948406063,0.24346901,659.18,657.39,0.293]
[1746948406365,0.24346901,659.17,657.39,0.293]
[1746948406565,0.24346901,659.16,657.39,0.293]
[1746948406770,0.24346901,659.15,657.39,0.293]
[1746948406967,0.24346901,659.14,657.39,0.293]
[1746948407161,0.24346901,659.13,657.39,0.293]
[1746948407366,0.24346901,659.23,657.39,0.293]
[1746948407666,0.26428506,659.24,657.39,0.293]
[1746948407865,0.2434348,659.23,657.39,0.293]
[1746948408067,0.26432019,659.22,657.39,0.293]
[1746948408267,1.92318063,659.16,657.39,0.293]
[1746948408469,0.2434348,659.15,657.39,0.293]
[1746948408767,0.2434348,659.14,657.39,0.293]
[1746948409068,0.2434348,659.13,657.39,0.293]
[1746948409368,0.2434348,659.12,657.39,0.293]
[1746948409767,0.2434348,659.11,657.39,0.293]
[1746948410070,0.2434348,659.1,657.39,0.293]
[1746948410371,0.2434348,659.15,657.39,0.293]
[1746948410668,0.2434348,659.14,657.39,0.293]
[1746948410869,0.2434348,659.13,657.39,0.293]
[1746948411168,0.2434348,659.12,657.39,0.293]
[1746948411369,0.2434348,659.11,657.39,0.293]
[1746948411565,0.2434348,659.1,657.39,0.293]
[1746948411765,0.2434348,659.09,657.39,0.293]
[1746948412068,0.2434348,659.08,657.39,0.293]
[1746948412269,0.2434348,659.07,657.39,0.293]
[1746948412470,0.2434348,659.06,657.39,0.293]
[1746948412671,0.2434348,659.19,657.39,0.293]
[1746948413073,0.2434348,659.21,657.39,0.293]
[1746948413872,0.2434348,659.2,657.39,0.293]
[1746948414073,0.2434348,659.19,657.39,0.293]
[1746948414275,0.2434348,659.18,657.39,0.293]
[1746948414575,0.2434348,659.17,657.39,0.293]
[1746948414769,0.2434348,659.16,657.39,0.293]
[1746948414969,0.26433625,659.2,657.39,0.293]
[1746948414970,0.2434348,659.15,657.39,0.293]
[1746948415171,0.2434348,659.14,657.39,0.293]
[1746948415477,0.2434348,659.13,657.39,0.293]
[1746948415669,0.2434348,659.19,657.39,0.293]
[1746948415869,0.2434348,659.18,657.39,0.293]
[1746948416073,0.2434348,659.17,657.39,0.293]
[1746948416273,0.26433625,659.2,657.39,0.293]
[1746948416470,0.24340006,659.19,657.39,0.293]
[1746948416672,0.24340006,659.18,657.39,0.293]
[1746948416871,0.24340006,659.17,657.39,0.293]
[1746948417176,0.24340006,659.16,657.39,0.293]
[1746948417475,0.24340006,659.15,657.39,0.293]
[1746948417677,0.24340006,659.14,657.39,0.293]
[1746948417871,0.24340006,659.13,657.39,0.293]
[1746948418078,0.24340006,659.12,657.39,0.293]
[1746948418376,0.24340006,659.19,657.39,0.293]
[1746948418675,0.24340006,659.18,657.39,0.293]
[1746948418975,0.24340006,659.17,657.39,0.293]
[1746948419175,0.24340006,659.16,657.39,0.293]
[1746948419371,0.24340006,659.15,657.39,0.293]
[1746948419574,0.24340006,659.19,657.39,0.293]
[1746948419771,0.24340006,659.18,657.39,0.293]
[1746948419973,0.24340006,659.17,657.39,0.293]
[1746948420173,0.24340006,659.16,657.39,0.293]
[1746948420471,0.24340006,659.15,657.39,0.293]
[1746948421680,0.24340006,659.14,657.39,0.293]
[1746948422078,0.24340006,659.17,657.39,0.293]
[1746948422280,0.24340006,659.16,657.39,0.293]
[1746948422579,0.24340006,659.15,657.39,0.293]
[1746948423076,0.50772828,659.14,657.39,0.293]
[1746948423280,0.24340006,659.13,657.39,0.293]
[1746948423581,0.24340006,659.12,657.39,0.293]
[1746948424077,0.24340006,659.12,657.38,0.26432822]
[1746948424484,0.24340006,659.11,657.38,0.26432822]
[1746948425183,0.24340006,659.1,657.38,0.26432822]
[1746948425379,0.24340006,659.09,657.38,0.26432822]
[1746948425682,0.24340006,659.08,657.38,0.26432822]
[1746948425883,0.24340006,659.08,657.37,0.30424266]
[1746948426084,0.24340006,659.07,657.38,0.26433123]
[1746948426783,0.24340006,659.06,657.38,0.26433123]
[1746948427183,0.24340006,659.05,657.38,0.26433123]
[1746948427582,0.24340006,659.04,657.38,0.26433123]
[1746948427882,0.24340006,659.03,657.38,0.26433123]
[1746948428083,0.24340006,659.03,657.39,0.445]
[1746948428284,0.24340006,659.02,657.39,0.445]
[1746948428685,0.24340006,659.01,657.39,0.445]
[1746948428986,0.24340006,659.0,657.39,0.445]
[1746948429181,0.24340006,658.99,657.39,0.445]
[1746948429485,0.24340006,658.98,657.39,0.445]
[1746948429885,0.24340006,658.97,657.39,0.445]
[1746948430387,0.24340006,658.96,657.39,0.445]
[1746948430687,0.24340006,658.95,657.39,0.445]
[1746948430986,0.24340006,658.94,657.39,0.445]
[1746948431686,0.24340006,658.93,657.39,0.445]
[1746948432088,0.24340006,658.92,657.39,0.445]
[1746948432387,0.24340006,658.91,657.39,0.445]
[1746948432783,0.24340006,658.9,657.39,0.445]
[1746948433087,0.24340006,658.89,657.39,0.445]
[1746948433483,0.24340006,658.88,657.39,0.445]
[1746948433783,0.24340006,658.92,657.39,0.445]
[1746948436885,0.26434931,658.93,657.39,0.445]
[1746948437194,0.24394335,658.92,657.39,0.445]
[1746948438090,0.26436638,658.91,657.39,0.445]
[1746948438290,0.24394335,658.9,657.39,0.445]
[1746948440594,0.24394335,658.89,657.39,0.445]
[1746948440993,0.24394335,658.88,657.39,0.445]
[1746948441190,0.50834889,658.88,657.39,0.445]
[1746948442195,0.24394335,658.87,657.39,0.445]
[1746948442596,0.24394335,658.86,657.39,0.445]
[1746948442994,0.24394335,658.85,657.39,0.445]
[1746948443295,0.24394335,658.84,657.39,0.445]
[1746948443694,0.24394335,658.87,657.39,0.445]
[1746948443889,0.24394335,658.86,657.39,0.445]
[1746948444394,0.24394335,658.85,657.39,0.445]
[1746948445094,0.24394335,658.87,657.39,0.445]
[1746948445995,0.24394335,658.86,657.39,0.445]
[1746948446191,0.24394335,658.85,657.39,0.445]
[1746948446595,0.24394335,658.84,657.39,0.445]
[1746948446792,0.24394335,658.83,657.39,0.445]
[1746948446992,0.24394335,658.82,657.39,0.445]
[1746948447497,0.24394335,658.81,657.39,0.445]
[1746948447799,0.24394335,658.8,657.39,0.445]
[1746948448098,0.24394335,658.79,657.39,0.445]
[1746948448499,0.24394335,658.78,657.39,0.445]
[1746948448899,0.24394335,658.77,657.39,0.445]
[1746948449500,0.24394335,658.76,657.39,0.445]
[1746948449899,0.24394335,658.75,657.39,0.445]
[1746948450094,0.50861736,658.75,657.39,0.445]
[1746948450599,0.24394335,658.74,657.39,0.445]
[1746948450801,0.24394335,658.73,657.39,0.445]
[1746948451000,0.24394335,658.72,657.39,0.445]
[1746948451300,0.24394335,658.71,657.39,0.445]
[1746948451503,0.24394335,658.7,657.39,0.445]
[1746948451801,0.24394335,658.69,657.39,0.445]
[1746948452303,0.24394335,658.68,657.39,0.445]
[1746948452500,0.30364679,658.66,657.39,0.445]
[1746948453201,0.24394335,658.65,657.39,0.445]
[1746948453501,0.24394335,658.64,657.39,0.445]
[1746948453797,0.24394335,658.63,657.39,0.445]
[1746948454301,0.24394335,658.62,657.39,0.445]
[1746948454600,0.24394335,658.61,657.39,0.445]
[1746948454897,0.24394335,658.6,657.39,0.445]
[1746948455299,0.24394335,658.59,657.39,0.445]
[1746948455703,1.92318063,658.55,657.39,0.445]
[1746948456003,0.24394335,658.54,655.05,0.95271709]
[1746948456302,0.24394335,658.53,655.06,0.27978898]
[1746948456503,0.24394335,658.52,655.19,0.30525496]
[1746948456800,0.24394335,658.51,655.2,0.27978898]
[1746948457104,0.24394335,658.51,655.2,0.5446463]
[1746948457305,0.24394335,658.5,655.21,0.27978898]
[1746948458005,1.92318063,658.38,655.21,0.27978898]
[1746948458403,0.24394335,658.37,655.22,0.27978898]
[1746948458900,0.24394335,658.37,655.23,0.27978898]